bitfinex/quotes_SOLUSD_20220116
["timestamp","ask_amount","ask_price","bid_price","bid_amount"]
[1642370443624,7.34522258,146.8,146.79,6.06439994]
[1642370443818,7.09522258,146.8,146.79,12.24639994]
[1642370444018,1.09522258,146.8,146.79,12.24639994]
[1642370445220,1.34522258,146.8,146.79,12.24639994]
[1642370448026,12.15495698,146.84,146.79,12.24639994]
[1642370448227,7.93545698,146.84,146.79,12.24639994]
[1642370448430,1.93545698,146.84,146.79,12.24639994]
[1642370448825,1.93545698,146.84,146.79,36.54009994]
[1642370449026,1.93545698,146.84,146.79,36.79009994]
[1642370449426,1.93545698,146.84,146.79,42.79009994]
[1642370449627,3.84708842,146.88,146.8,90.0]
[1642370449826,3.84708842,146.88,146.8,90.26]
[1642370450028,3.84708842,146.9,146.8,96.51]
[1642370450228,3.84708842,146.9,146.81,36.61456398]
[1642370450528,3.84708842,146.9,146.84,10.2109]
[1642370450727,3.84708842,146.9,146.85,42.99115724]
[1642370450931,3.84708842,146.9,146.85,43.24115724]
[1642370451328,9.78,146.95,146.85,49.24115724]
[1642370451729,15.78,146.95,146.85,49.24115724]
[1642370452133,9.78,146.95,146.86,1.4943215]
[1642370452327,19.9913,146.95,146.86,1.4943215]
[1642370452528,19.9913,146.95,146.86,1.7443215]
[1642370452927,9.78,146.95,146.87,0.26]
[1642370453354,9.78,146.95,146.87,10.4695]
[1642370453355,0.25,146.95,146.87,10.4695]
[1642370453559,24.6397,146.96,146.87,78.6195]
[1642370453755,24.6397,146.96,146.88,35.42210628]
[1642370453955,24.6397,146.96,146.89,0.26]
[1642370454154,3.84708842,147.0,146.9,103.0]
[1642370454354,3.84708842,147.0,146.91,0.26]
[1642370454854,3.84708842,147.03,146.91,39.14931572]
[1642370455054,3.84708842,147.03,146.91,62.13831572]
[1642370455255,3.84708842,147.03,146.91,68.38831572]
[1642370455456,3.84708842,147.03,146.91,78.59481572]
[1642370455956,61.65014948,147.05,146.91,78.59481572]
[1642370457054,59.50383694,147.05,146.91,78.59481572]
[1642370457256,59.50383694,147.05,146.91,88.37481572]
[1642370457455,59.75383694,147.05,146.91,88.37481572]
[1642370457957,59.75383694,147.05,146.91,88.11481572]
[1642370458156,127.90383694,147.05,146.91,88.11481572]
[1642370458358,145.04814588,147.05,146.91,71.65831572]
[1642370459860,145.04814588,147.05,146.91,71.90831572]
[1642370460260,152.61904833,147.05,146.91,71.90831572]
[1642370461962,84.46904833,147.05,147.03,1.4943215]
[1642370462162,84.46904833,147.05,146.91,23.239]
[1642370462863,84.46904833,147.05,146.91,29.239]
[1642370462864,68.15,147.04,146.91,29.239]
[1642370463067,10.2078,147.01,146.91,29.239]
[1642370463264,0.43723505,147.0,146.92,44.51121085]
[1642370463464,10.2078,147.01,146.92,44.76121085]
[1642370464567,10.2078,147.01,146.92,44.51121085]
[1642370464763,78.3578,147.01,146.92,44.51121085]
[1642370464964,9.78,147.0,146.92,44.51121085]
[1642370465364,10.71334582,146.99,146.92,44.51121085]
[1642370465570,10.2104,146.98,146.92,44.51121085]
[1642370465765,11.91117588,146.98,146.91,22.989]
[1642370466766,11.91117588,146.98,146.92,40.60124549]
[1642370466967,18.16117588,146.98,146.92,40.60124549]
[1642370467370,86.31117588,146.98,146.92,40.60124549]
[1642370469471,16.4604,146.98,146.92,40.60124549]
[1642370469674,6.0,146.98,146.92,47.95424549]
[1642370469872,19.9878,147.0,146.92,47.70424549]
[1642370470072,9.78,147.0,146.92,47.70424549]
[1642370470274,9.78,147.03,146.92,47.70424549]
[1642370470672,15.78,147.03,146.92,47.95424549]
[1642370471175,10.2065,147.02,146.92,58.16024549]
[1642370473978,10.4565,147.02,146.92,58.16024549]
[1642370474677,10.4565,147.02,146.92,51.05724549]
[1642370475581,1.70077588,147.02,146.92,51.05724549]
[1642370475779,10.205,147.04,146.94,10.2048]
[1642370476179,10.205,147.04,146.94,16.4548]
[1642370476381,17.90577588,147.04,146.94,6.25]
[1642370476686,35.82604037,147.03,146.95,39.01011413]
[1642370476880,10.2066,147.02,146.95,39.01011413]
[1642370477080,11.90737588,147.02,146.95,39.01011413]
[1642370477481,11.90737588,147.02,146.95,39.26011413]
[1642370479185,11.90737588,147.02,146.95,39.01011413]
[1642370480714,15.7544643,147.02,146.95,39.01011413]
[1642370482817,16.0044643,147.02,146.95,39.01011413]
[1642370483017,14.30368842,147.02,146.95,39.01011413]
[1642370483419,7.72119028,147.01,146.95,39.01011413]
[1642370483618,2.42985574,147.0,146.95,39.01011413]
[1642370484426,2.42985574,147.0,146.93,24.8159]
[1642370484619,2.42985574,147.0,146.89,24.2433]
[1642370484620,24.11843162,147.0,146.89,24.2433]
[1642370484820,30.11843162,147.0,146.89,24.2433]
[1642370485020,42.057185,147.0,146.89,24.2433]
[1642370485222,42.057185,147.0,146.85,22.9299]
[1642370485523,48.67238805,147.0,146.87,44.26357245]
[1642370485920,48.67238805,147.0,146.87,50.26357245]
[1642370486122,55.78237877,147.0,146.87,50.26357245]
[1642370486421,31.269548,146.97,146.87,50.26357245]
[1642370486625,10.2128,146.95,146.87,50.26357245]
[1642370487022,6.98634811,146.94,146.87,44.26357245]
[1642370488223,10.2142,146.92,146.87,44.26357245]
[1642370488723,10.2142,146.92,146.87,44.51357245]
[1642370489425,10.2142,146.92,146.87,44.26357245]
[1642370489825,10.2142,146.92,146.87,44.51357245]
[1642370490325,10.2142,146.92,146.87,44.26357245]
[1642370491927,10.4642,146.92,146.87,44.26357245]
[1642370494431,16.4642,146.92,146.87,44.26357245]
[1642370494628,10.4642,146.92,146.87,44.26357245]
[1642370495336,10.4642,146.92,146.87,44.51357245]
[1642370495734,0.25,146.92,146.87,44.51357245]
[1642370495933,10.2122,146.94,146.87,44.51357245]
[1642370496334,16.2122,146.94,146.87,44.51357245]
[1642370496534,10.2122,146.94,146.87,44.51357245]
[1642370496734,38.34009738,146.94,146.87,44.51357245]
[1642370497139,16.2122,146.94,146.87,44.51357245]
[1642370497937,10.2122,146.94,146.87,44.51357245]
[1642370498236,16.2122,146.94,146.87,44.51357245]
[1642370498458,10.2122,146.94,146.87,44.51357245]
[1642370499561,16.4622,146.94,146.87,44.51357245]
[1642370499759,6.25,146.94,146.87,44.51357245]
[1642370499961,10.2107,146.96,146.87,44.51357245]
[1642370500360,3.84708842,146.97,146.87,50.51357245]
[1642370500561,3.84708842,146.98,146.88,0.26]
[1642370500763,3.84708842,146.98,146.89,10.2079]
[1642370500962,3.84708842,146.98,146.89,16.4579]
[1642370501561,9.78,146.99,146.89,16.4579]
[1642370501763,9.78,146.99,146.9,38.68053144]
[1642370501962,9.78,146.99,146.9,68.84343144]
[1642370502762,9.78,146.99,146.9,79.05083144]
[1642370503163,10.03,146.99,146.9,79.05083144]
[1642370504265,0.25,146.99,146.9,79.05083144]
[1642370504464,10.208,147.0,146.9,79.05083144]
[1642370504668,10.458,147.0,146.9,79.05083144]
[1642370505766,8.67110062,146.99,146.9,62.59343144]
[1642370505968,18.87990062,146.99,146.9,62.59343144]
[1642370506166,10.2088,146.99,146.9,62.59343144]
[1642370507772,10.2088,146.99,146.9,62.84343144]
[1642370507968,10.4588,146.99,146.9,62.84343144]
[1642370508168,0.25,146.99,146.9,62.84343144]
[1642370508368,9.84708842,147.0,146.9,62.84343144]
[1642370508568,10.09708842,147.0,146.9,73.05083144]
[1642370509170,4.09708842,147.0,146.9,73.05083144]
[1642370509574,20.30508842,147.0,146.9,73.05083144]
[1642370509874,10.458,147.0,146.9,79.05083144]
[1642370510070,6.4774256,146.99,146.9,68.59343144]
[1642370510271,74.6274256,146.99,146.9,62.59343144]
[1642370510470,9.78,146.98,146.9,38.68053144]
[1642370511472,10.2114,146.97,146.9,38.68053144]
[1642370514075,10.4614,146.97,146.9,38.68053144]
[1642370514574,10.2114,146.97,146.9,38.68053144]
[1642370514778,3.84708842,146.98,146.9,38.68053144]
[1642370515778,7.72192741,146.98,146.9,38.68053144]
[1642370516581,7.72192741,146.98,146.9,38.93053144]
[1642370516780,93.0469172,146.98,146.9,38.68053144]
[1642370517279,24.8969172,146.98,146.9,38.68053144]
[1642370517483,93.0469172,146.98,146.9,38.68053144]
[1642370517684,25.1469172,146.98,146.9,38.68053144]
[1642370518281,27.27207821,146.98,146.9,38.68053144]
[1642370518782,21.27207821,146.98,146.9,38.68053144]
[1642370518981,27.27207821,146.98,146.9,38.68053144]
[1642370519180,10.2105,146.96,146.9,38.68053144]
[1642370520184,31.29010632,146.95,146.9,38.68053144]
[1642370520385,41.50140632,146.95,146.9,38.68053144]
[1642370520583,41.50140632,146.95,146.86,24.8697]
[1642370520782,54.52240632,146.95,146.86,24.8697]
[1642370521181,56.2231822,146.95,146.86,24.8697]
[1642370521583,56.2231822,146.95,146.87,46.88269916]
[1642370521984,66.0031822,146.95,146.87,46.88269916]
[1642370522183,7.72457479,146.94,146.87,46.88269916]
[1642370522389,10.215,146.92,146.87,46.88269916]
[1642370522589,17.18078979,146.92,146.87,46.88269916]
[1642370523086,10.215,146.92,146.87,46.88269916]
[1642370523889,16.465,146.92,146.8,10.2144]
[1642370524089,16.465,146.92,146.81,23.5803]
[1642370524388,10.465,146.92,146.81,29.8403]
[1642370524616,16.465,146.92,146.81,40.054]
[1642370524818,16.465,146.92,146.82,42.7873153]
[1642370525018,10.465,146.92,146.82,48.7873153]
[1642370525423,10.465,146.92,146.83,23.881]
[1642370525818,10.465,146.92,146.83,23.871]
[1642370526823,10.465,146.92,146.83,29.871]
[1642370527118,10.465,146.92,146.83,29.621]
[1642370527319,10.465,146.92,146.83,29.871]
[1642370527518,10.465,146.92,146.84,0.26]
[1642370527922,10.465,146.92,146.83,29.871]
[1642370528319,10.465,146.92,146.83,23.871]
[1642370529019,10.215,146.92,146.83,29.871]
[1642370529820,10.215,146.92,146.83,23.871]
[1642370530024,10.215,146.92,146.83,29.871]
[1642370530820,10.215,146.92,146.83,23.871]
[1642370531020,10.215,146.92,146.83,29.871]
[1642370531922,10.465,146.92,146.83,29.871]
[1642370532520,10.465,146.92,146.83,23.871]
[1642370533023,10.465,146.92,146.83,29.871]
[1642370533920,10.465,146.92,146.82,42.7873153]
[1642370534822,16.465,146.92,146.82,42.7873153]
[1642370535024,16.465,146.92,146.82,59.0002153]
[1642370535222,0.25,146.92,146.83,23.1443]
[1642370535423,20.05928842,146.94,146.83,29.6543]
[1642370535823,16.2122,146.94,146.83,29.6543]
[1642370536425,16.2122,146.94,146.83,39.8664]
[1642370538330,10.2122,146.94,146.83,39.8664]
[1642370538526,10.2122,146.94,146.83,39.3664]
[1642370538924,14.05788842,146.96,146.83,39.3664]
[1642370539125,14.05788842,146.96,146.83,49.1464]
[1642370539726,14.05788842,146.96,146.83,141.7444]
[1642370540128,10.4608,146.96,146.83,141.7444]
[1642370542828,10.4608,146.96,146.83,73.3344]
[1642370544232,10.4608,146.96,146.84,0.26]
[1642370544430,10.4608,146.96,146.85,10.2111]
[1642370544632,10.4608,146.96,146.86,23.1185]
[1642370544830,10.4608,146.96,146.86,23.3685]
[1642370545234,10.4608,146.96,146.87,35.88905113]
[1642370545432,10.4608,146.96,146.87,36.13905113]
[1642370545634,10.2108,146.96,146.87,36.13905113]
[1642370545836,10.2108,146.96,146.87,42.13905113]
[1642370546034,10.2108,146.96,146.87,36.13905113]
[1642370546234,3.84708842,146.97,146.88,0.26]
[1642370546433,14.05638842,146.98,146.87,42.13905113]
[1642370547635,14.05638842,146.98,146.87,36.13905113]
[1642370548535,14.05638842,146.98,146.87,42.13905113]
[1642370548936,14.05638842,146.98,146.87,41.88905113]
[1642370549339,20.30638842,146.98,146.87,41.88905113]
[1642370550036,14.30638842,146.98,146.87,35.88905113]
[1642370550237,48.89253318,146.98,146.87,36.13905113]
[1642370550736,42.89253318,146.98,146.87,36.13905113]
[1642370550938,42.89253318,146.98,146.87,42.13905113]
[1642370551136,42.89253318,146.98,146.87,36.13905113]
[1642370554239,42.64253318,146.98,146.87,36.13905113]
[1642370554441,120.57253318,146.98,146.87,35.88905113]
[1642370555141,128.27330906,146.98,146.87,35.88905113]
[1642370555541,146.73525688,146.98,146.87,35.88905113]
[1642370555742,7.72216668,146.97,146.87,35.88905113]
[1642370555942,10.2143,146.94,146.87,35.88905113]
[1642370556146,9.66975135,146.93,146.87,35.88905113]
[1642370556643,34.0477,146.95,146.87,35.88905113]
[1642370557042,10.2139,146.92,146.87,35.88905113]
[1642370561650,10.4639,146.92,146.87,35.88905113]
[1642370564856,10.2121,146.94,146.87,35.88905113]
[1642370565057,3.84708842,146.95,146.87,36.13905113]
[1642370565357,3.84708842,146.95,146.87,42.13905113]
[1642370565758,3.84708842,146.96,146.87,42.13905113]
[1642370566379,14.05798842,146.96,146.87,42.13905113]
[1642370566577,10.2109,146.96,146.88,23.0674]
[1642370567576,14.05798842,146.96,146.88,23.0674]
[1642370567777,14.30798842,146.96,146.88,23.0674]
[1642370568477,14.30798842,146.96,146.88,23.3174]
[1642370570077,1.93932295,146.93,146.88,23.3174]
[1642370571080,1.93932295,146.93,146.88,23.0674]
[1642370572081,1.93932295,146.93,146.88,23.3174]
[1642370573886,1.93932295,146.93,146.88,23.0674]
[1642370574288,1.93932295,146.93,146.88,23.3174]
[1642370576588,1.93932295,146.94,146.88,23.3174]
[1642370578191,1.93932295,146.94,146.87,35.88905113]
[1642370578192,11.14455675,146.94,146.87,35.88905113]
[1642370578793,1.93932295,146.93,146.87,35.88905113]
[1642370579592,1.93932295,146.92,146.87,35.88905113]
[1642370579892,3.84708842,146.95,146.88,0.26]
[1642370580498,4.09708842,146.95,146.88,0.26]
[1642370580693,0.25,146.95,146.88,0.26]
[1642370580892,10.2108,146.96,146.88,0.26]
[1642370581300,10.2108,146.96,146.87,61.87865113]
[1642370581493,10.2108,146.96,146.87,42.13905113]
[1642370582295,14.05788842,146.96,146.87,42.13905113]
[1642370582496,14.05788842,146.96,146.87,36.13905113]
[1642370582897,14.05788842,146.96,146.87,35.88905113]
[1642370583498,20.05788842,146.96,146.87,35.88905113]
[1642370583699,7.67087272,146.95,146.87,35.88905113]
[1642370583900,10.2126,146.93,146.87,35.88905113]
[1642370584500,7.67087272,146.95,146.87,35.88905113]
[1642370584700,7.67087272,146.95,146.88,0.26]
[1642370585699,3.84708842,146.95,146.88,0.26]
[1642370585900,14.05718842,146.97,146.88,0.26]
[1642370586301,3.84708842,146.97,146.88,0.26]
[1642370586700,3.84708842,146.97,146.88,10.04]
[1642370586903,3.84708842,146.97,146.89,68.15]
[1642370587103,3.84708842,146.97,146.9,24.3776]
[1642370587300,3.84708842,146.97,146.91,45.1157298]
[1642370587502,3.84708842,146.97,146.91,55.3215298]
[1642370587700,5.69027262,147.01,146.91,61.5715298]
[1642370587701,7.72518966,147.01,146.91,61.5715298]
[1642370587903,13.97518966,147.01,146.91,61.5715298]
[1642370588801,13.97518966,147.01,146.92,23.6732]
[1642370589001,24.18238966,147.01,146.92,23.6732]
[1642370589205,24.18238966,147.01,146.92,23.9232]
[1642370589605,16.4572,147.01,146.92,23.9232]
[1642370589809,10.4572,147.01,146.92,23.9232]
[1642370590015,7.81854844,147.0,146.92,23.9232]
[1642370590211,18.02634844,147.0,146.91,45.1157298]
[1642370590416,25.72712432,147.0,146.91,45.1157298]
[1642370590914,24.02634844,147.0,146.91,45.1157298]
[1642370591414,21.87343686,147.0,146.91,45.1157298]
[1642370592243,18.02634844,147.0,146.91,45.1157298]
[1642370592741,19.72712432,147.0,146.91,45.1157298]
[1642370593541,23.57421274,147.0,146.91,45.1157298]
[1642370593741,21.87343686,147.0,146.91,45.1157298]
[1642370593941,23.57421274,147.0,146.91,45.1157298]
[1642370594543,21.87343686,147.0,146.91,45.1157298]
[1642370595342,22.12343686,147.0,146.91,45.1157298]
[1642370595743,23.82421274,147.0,146.91,45.1157298]
[1642370596344,22.12343686,147.0,146.91,45.1157298]
[1642370596943,14.05488842,147.0,146.91,45.3657298]
[1642370597144,14.05488842,147.0,146.91,51.3657298]
[1642370597745,10.2078,147.0,146.92,24.3945]
[1642370597944,10.2078,147.0,146.92,24.6445]
[1642370598345,10.2066,147.02,146.92,30.6445]
[1642370598844,10.4566,147.02,146.92,30.6445]
[1642370601853,7.4566,147.02,146.92,30.6445]
[1642370609765,7.4566,147.02,146.93,0.26]
[1642370613169,7.4566,147.02,146.92,40.8505]
[1642370614280,7.4566,147.02,146.92,30.6445]
[1642370615072,7.4566,147.02,146.92,30.3945]
[1642370616275,11.30368842,147.02,146.92,30.3945]
[1642370616674,11.30368842,147.02,146.92,30.6445]
[1642370619505,17.30368842,147.02,146.92,30.6445]
[1642370621608,11.05368842,147.02,146.92,40.8504]
[1642370621807,11.05368842,147.02,146.93,0.26]
[1642370622506,7.2066,147.02,146.93,0.26]
[1642370625316,7.4566,147.02,146.93,0.26]
[1642370627113,11.30368842,147.02,146.93,0.26]
[1642370627314,4.09708842,147.02,146.94,35.88905113]
[1642370627515,4.09708842,147.02,146.95,23.4215]
[1642370627714,4.09708842,147.02,146.95,23.6815]
[1642370627916,0.25,147.02,146.95,29.9315]
[1642370628314,3.84708842,147.03,146.95,29.9315]
[1642370628919,4.09708842,147.03,146.95,29.9315]
[1642370629316,14.30298842,147.03,146.95,23.6715]
[1642370629514,18.18328777,147.03,146.95,23.6715]
[1642370630416,14.30298842,147.03,146.95,23.6715]
[1642370633517,3.87988418,147.02,146.95,23.6715]
[1642370633719,14.08658418,147.02,146.95,23.6715]
[1642370634322,14.05378842,147.02,146.95,23.6715]
[1642370635921,10.4567,147.02,146.95,23.6715]
[1642370639326,0.25,147.02,146.95,23.6715]
[1642370639724,3.84708842,147.03,146.95,23.6715]
[1642370640627,7.72640028,147.03,146.95,23.6715]
[1642370640825,7.72640028,147.03,146.95,29.6715]
[1642370641326,7.72640028,147.03,146.95,23.6715]
[1642370641525,7.72640028,147.03,146.95,33.8752]
[1642370642125,3.84708842,147.03,146.95,39.8752]
[1642370642325,3.84708842,147.04,146.95,39.8752]
[1642370643126,5.25590947,147.05,146.95,39.8752]
[1642370643324,5.50590947,147.05,146.95,39.8752]
[1642370644328,3.87862101,147.04,146.95,39.8752]
[1642370644726,3.87862101,147.04,146.96,0.26]
[1642370644925,3.87862101,147.04,146.98,10.2014]
[1642370645325,3.84708842,147.05,146.98,16.4514]
[1642370645526,3.84708842,147.05,146.99,45.1157298]
[1642370645725,3.84708842,147.05,146.99,69.0129298]
[1642370645925,3.84708842,147.05,146.99,75.2629298]
[1642370646528,3.84708842,147.07,146.99,75.2629298]
[1642370647527,6.29819323,147.07,147.0,10.2002]
[1642370647727,0.25,147.07,147.0,10.2002]
[1642370647926,3.84708842,147.08,147.0,10.4502]
[1642370648126,4.09708842,147.08,147.0,10.4502]
[1642370648327,4.09708842,147.08,146.99,51.1157298]
[1642370648627,29.49072652,147.07,146.99,45.1157298]
[1642370649432,3.84708842,147.09,146.99,45.1157298]
[1642370649727,3.84708842,147.09,147.0,23.5907]
[1642370649929,3.84708842,147.08,147.0,29.8407]
[1642370650328,4.09708842,147.08,147.0,29.8407]
[1642370651133,0.25,147.08,147.0,23.5907]
[1642370651332,3.84708842,147.1,147.0,23.5907]
[1642370651530,9.84708842,147.1,147.0,23.5907]
[1642370651731,32.69460528,147.09,147.0,23.5907]
[1642370651935,32.94460528,147.09,147.0,23.8407]
[1642370652162,10.2024,147.08,146.99,45.1157298]
[1642370652530,11.90317588,147.08,146.99,45.1157298]
[1642370653329,10.205,147.05,146.99,45.1157298]
[1642370657339,3.84708842,147.07,146.99,45.1157298]
[1642370657539,14.04998842,147.07,146.99,45.1157298]
[1642370658238,34.41288996,147.06,146.99,45.1157298]
[1642370658839,0.25,147.06,146.99,45.1157298]
[1642370659241,10.2029,147.07,146.99,45.1157298]
[1642370659440,10.4529,147.07,146.99,45.1157298]
[1642370659866,32.64803338,147.06,146.99,45.1157298]
[1642370660066,10.4529,147.07,146.99,45.1157298]
[1642370660264,14.04888842,147.09,146.99,45.3657298]
[1642370660467,3.34708842,147.08,146.99,61.5669298]
[1642370661470,48.29324349,147.09,146.99,61.5669298]
[1642370661770,48.29324349,147.09,147.0,22.8592]
[1642370661971,48.29324349,147.09,147.0,23.1092]
[1642370662169,48.29324349,147.09,147.0,29.1092]
[1642370662366,48.29324349,147.09,147.0,39.3097]
[1642370662967,48.54324349,147.09,147.0,39.3097]
[1642370663370,38.09144349,147.09,147.0,39.3097]
[1642370663971,38.09144349,147.09,147.0,28.8592]
[1642370664773,38.34144349,147.09,147.0,28.8592]
[1642370665476,48.54304349,147.09,147.0,29.1092]
[1642370665973,48.54304349,147.09,147.0,22.8592]
[1642370666177,56.24381937,147.09,147.0,22.8592]
[1642370666474,68.15,147.08,147.0,22.8592]
[1642370666775,2.10377558,147.05,146.99,45.1157298]
[1642370667378,2.10377558,147.05,146.94,23.3272]
[1642370667776,2.10377558,147.05,146.94,29.3272]
[1642370667975,2.35377558,147.05,146.94,29.3272]
[1642370668375,12.55827558,147.05,146.95,46.96156064]
[1642370668777,12.55827558,147.05,146.95,47.21156064]
[1642370669277,12.55827558,147.05,146.96,23.3797]
[1642370669777,18.55827558,147.05,146.96,23.3797]
[1642370669980,18.55827558,147.05,146.96,23.6297]
[1642370672181,12.55827558,147.05,146.96,23.6297]
[1642370674384,12.30827558,147.05,146.96,23.6297]
[1642370675886,80.70827558,147.05,146.96,23.3797]
[1642370677187,78.6045,147.05,146.96,23.3797]
[1642370677389,78.6045,147.05,146.96,23.6297]
[1642370679589,78.6045,147.05,146.96,23.3797]
[1642370680689,78.6045,147.05,146.96,23.6297]
[1642370684793,78.6045,147.05,146.96,23.3797]
[1642370684993,78.6045,147.05,146.96,23.6297]
[1642370685396,78.6045,147.05,146.96,23.3797]
[1642370685597,78.6045,147.05,146.96,23.6297]
[1642370687298,78.6045,147.05,146.96,23.3797]
[1642370687902,96.08527588,147.05,146.95,46.96156064]
[1642370688302,107.63240114,147.05,146.95,46.96156064]
[1642370688905,68.15,147.03,146.95,46.96156064]
[1642370689103,78.3589,147.01,146.95,46.96156064]
[1642370689503,80.05967588,147.01,146.95,46.96156064]
[1642370689703,80.05967588,147.01,146.89,32.7416]
[1642370689905,80.05967588,147.01,146.89,22.5335]
[1642370689906,89.83967588,147.01,146.89,22.5335]
[1642370690408,89.83967588,147.01,146.89,22.7835]
[1642370690810,89.83967588,147.01,146.9,47.76726713]
[1642370691908,96.08967588,147.01,146.9,47.76726713]
[1642370692514,96.08967588,147.01,146.9,48.01726713]
[1642370692713,96.08967588,147.01,146.9,47.76726713]
[1642370700240,96.08967588,147.01,146.91,23.5776]
[1642370700443,1.93373952,146.99,146.91,23.5776]
[1642370700642,10.2105,146.97,146.91,23.5776]
[1642370700841,10.2105,146.97,146.91,23.8276]
[1642370701041,10.2105,146.97,146.91,23.5776]
[1642370701442,10.2105,146.97,146.91,23.8276]
[1642370704346,10.4605,146.97,146.91,23.8276]
[1642370706752,1.99910848,146.96,146.91,23.5776]
[1642370707150,10.2123,146.95,146.91,23.5776]
[1642370707350,10.2123,146.95,146.9,47.76726713]
[1642370707550,10.2123,146.95,146.87,24.7634]
[1642370707749,10.2123,146.95,146.88,23.0096]
[1642370707949,10.4623,146.95,146.88,23.0096]
[1642370708853,16.4623,146.95,146.88,23.0096]
[1642370709051,18.16307588,146.95,146.81,86.58375957]
[1642370709251,9.78,146.94,146.81,1.91295957]
[1642370709453,10.2179,146.91,146.81,1.91295957]
[1642370709653,32.1351028,146.9,146.82,43.70738398]
[1642370710255,100.2851028,146.9,146.82,43.70738398]
[1642370711459,10.2176,146.88,146.82,43.70738398]
[1642370712055,10.2176,146.88,146.82,43.95738398]
[1642370712454,10.2176,146.88,146.82,43.70738398]
[1642370716462,10.4676,146.88,146.82,43.70738398]
[1642370717762,10.2176,146.88,146.82,43.95738398]
[1642370717961,10.215,146.9,146.82,43.70738398]
[1642370718161,10.215,146.9,146.83,22.6654]
[1642370718362,10.215,146.9,146.83,28.6654]
[1642370718561,10.215,146.9,146.83,22.6654]
[1642370720291,10.215,146.9,146.83,22.9154]
[1642370722493,10.215,146.9,146.83,22.6654]
[1642370723795,10.465,146.9,146.83,22.6654]
[1642370726897,10.465,146.9,146.83,22.9154]
[1642370728397,10.215,146.9,146.83,22.9154]
[1642370729900,10.2139,146.92,146.83,22.9154]
[1642370730398,11.71373952,146.95,146.84,10.04]
[1642370730399,1.93373952,146.95,146.84,10.04]
[1642370730598,1.93373952,146.95,146.85,24.7701]
[1642370730799,1.93373952,146.95,146.85,26.02962401]
[1642370730999,1.93373952,146.95,146.86,11.72992401]
[1642370731299,1.93373952,146.97,146.87,37.29739695]
[1642370731498,1.93373952,146.97,146.88,9.78]
[1642370731699,1.93373952,146.97,146.88,10.04]
[1642370731901,1.93373952,146.97,146.88,17.54952401]
[1642370732098,1.93373952,146.97,146.89,1.25952401]
[1642370732298,1.93373952,147.0,146.89,1.25952401]
[1642370732502,12.14213952,147.0,146.89,41.59392401]
[1642370732698,18.14213952,147.0,146.9,0.26]
[1642370732898,18.14213952,147.0,146.9,1.51952401]
[1642370733302,18.14213952,147.0,146.9,7.76952401]
[1642370733903,12.14213952,147.0,146.9,7.76952401]
[1642370734102,10.2084,147.0,146.9,7.76952401]
[1642370734403,10.2084,147.0,146.9,17.97682401]
[1642370735207,1.93373952,147.01,146.9,17.97682401]
[1642370735404,1.93373952,147.01,146.92,43.70738398]
[1642370735805,1.93373952,147.01,146.92,49.95738398]
[1642370736606,12.14083952,147.02,146.92,49.95738398]
[1642370736808,18.14083952,147.02,146.92,49.95738398]
[1642370737207,18.14083952,147.02,146.93,22.7862]
[1642370737408,12.39083952,147.02,146.93,23.0362]
[1642370737609,18.39083952,147.02,146.93,23.0362]
[1642370737908,16.4571,147.02,146.93,23.0362]
[1642370738108,10.4571,147.02,146.93,23.0362]
[1642370738434,16.4571,147.02,146.93,23.0362]
[1642370739005,10.4571,147.02,146.93,23.0362]
[1642370739407,16.4571,147.02,146.93,23.0362]
[1642370740709,10.4571,147.02,146.93,23.0362]
[1642370741210,10.4571,147.02,146.93,29.0362]
[1642370743109,10.4571,147.02,146.93,23.0362]
[1642370744310,16.4571,147.02,146.93,23.0362]
[1642370744913,16.4571,147.02,146.93,29.0362]
[1642370745114,6.25,147.02,146.93,29.0362]
[1642370745513,0.25,147.02,146.93,29.0362]
[1642370745713,12.13943952,147.04,146.93,29.0362]
[1642370745942,12.13943952,147.04,146.93,39.2416]
[1642370746114,12.13943952,147.04,146.94,0.26]
[1642370747316,10.2057,147.04,146.94,0.26]
[1642370747819,10.4557,147.04,146.94,0.26]
[1642370748017,0.25,147.04,146.94,10.4647]
[1642370748317,0.25,147.04,146.95,24.9569]
[1642370748516,2.18373952,147.05,146.95,24.9569]